Departmental Area,Entity,Payment Date,Expense type,Expense Area,Supplier Name,Payment Reference,      Invoice Distribution Amount      ,Description,Supplier Type,Expenditure Type
UK Statistics Family,Office for National Statistics,01/08/2023,Exp - Purchase Of Goods/Services - IT Contractual Services,CDIO UNGP,CTS (Cloud Technology Solutions Ltd),274681,"111,428.80",Information Management Services,Large,Programme Expenditure
UK Statistics Family,Office for National Statistics,02/08/2023,EXP - PURCHASE OF GOODS/SERVICES -  NON IT CONTRACTUAL PAYMENTS,Best Practice And Impact,University of Southampton,274837,25536.25,Research Services,SME,Programme Expenditure
UK Statistics Family,Office for National Statistics,02/08/2023,EXP - PURCHASE OF GOODS/SERVICES - DATA ACQUISITION,Prices Division,Kantar Public UK Ltd.,274850,"223,078.80",Statistical Services,SME,Programme Expenditure
UK Statistics Family,Office for National Statistics,02/08/2023,Exp - Purchase Of Goods/Services - Contractors,Data Architecture,SmartSourcing Ltd,274854,"21,820.80",Information Management Services,SME,Programme Expenditure
UK Statistics Family,Office for National Statistics,02/08/2023,Exp - Purchase Of Goods/Services - Contractors,Data Architecture,SmartSourcing Ltd,274854,"17,984.64",Information Management Services,SME,Programme Expenditure
UK Statistics Family,Office for National Statistics,03/08/2023,Specialist User Software And Hardware,Security Operations,Scc,274947,"72,000.00",Software Licenses,Large,Programme Expenditure
UK Statistics Family,Office for National Statistics,03/08/2023,Exp - Purchase Of Goods/Services - Incentive Payments,Interviewer Support,Sodexo Motivation Solutions U.K. ltd,274960,"29,259.53",Survey Response Incentive Vouchers,Large,Programme Expenditure
UK Statistics Family,Office for National Statistics,03/08/2023,Exp - Purchase Of Goods/Services - Incentive Payments,Interviewer Support,Sodexo Motivation Solutions U.K. ltd,274960,"11,507.25",Survey Response Incentive Vouchers,Large,Programme Expenditure
UK Statistics Family,Office for National Statistics,04/08/2023,End User Software And Hardware,IT Operations,Softcat PLC UK,275046,"37,344.00",Software Licenses,SME,Programme Expenditure
UK Statistics Family,Office for National Statistics,04/08/2023,Exp - Purchase Of Goods/Services - Contractors,ECONOMIC CHANGE,Talent International,275054,"10,260.00",Information Management Services,SME,Programme Expenditure
UK Statistics Family,Office for National Statistics,04/08/2023,Exp - Short-Term Contract & Agency Staff - Full Cost,Recruitment ,Talent International,275054,"3,062.30",Information Management Services,SME,Programme Expenditure
UK Statistics Family,Office for National Statistics,04/08/2023,Exp - Purchase Of Goods/Services - Contractors,Tech Delivery Legacy Sp,Talent International,275054,"14,382.00",Information Management Services,SME,Programme Expenditure
UK Statistics Family,Office for National Statistics,04/08/2023,Exp - Purchase Of Goods/Services - Contractors,IT Applications,Talent International,275054,"14,376.00",Information Management Services,SME,Programme Expenditure
UK Statistics Family,Office for National Statistics,04/08/2023,Exp - Purchase Of Goods/Services - Contractors,IT Operations,Talent International,275054,"17,999.76",Information Management Services,SME,Programme Expenditure
UK Statistics Family,Office for National Statistics,04/08/2023,Exp - Purchase Of Goods/Services - Contractors,DATA ENGINEERING OPERATIONS AND DELIVERY,Talent International,275054,"8,100.00",Information Management Services,SME,Programme Expenditure
UK Statistics Family,Office for National Statistics,07/08/2023,Exp - Short-Term Contract & Agency Staff - Full Cost,Business Change Support,Concept Information Technology Ltd T/A Concept Resourcing,275137,"3,298.03",Information Management Services,Large,Programme Expenditure
UK Statistics Family,Office for National Statistics,07/08/2023,Exp - Short-Term Contract & Agency Staff - Full Cost,Business Change Support,Concept Information Technology Ltd T/A Concept Resourcing,275137,"9,395.04",Information Management Services,Large,Programme Expenditure
UK Statistics Family,Office for National Statistics,07/08/2023,Exp - Short-Term Contract & Agency Staff - Full Cost,Business Change Support,Concept Information Technology Ltd T/A Concept Resourcing,275137,"5,272.50",Information Management Services,Large,Programme Expenditure
UK Statistics Family,Office for National Statistics,07/08/2023,Exp - Short-Term Contract & Agency Staff - Full Cost,Business Change Support,Concept Information Technology Ltd T/A Concept Resourcing,275137,"9,030.52",Information Management Services,Large,Programme Expenditure
UK Statistics Family,Office for National Statistics,07/08/2023,Exp - Short-Term Contract & Agency Staff - Full Cost,Business Change Support,Concept Information Technology Ltd T/A Concept Resourcing,275137,824.51,Information Management Services,Large,Programme Expenditure
UK Statistics Family,Office for National Statistics,07/08/2023,Exp - Short-Term Contract & Agency Staff - Full Cost,Business Change Support,Concept Information Technology Ltd T/A Concept Resourcing,275137,"2,308.62",Information Management Services,Large,Programme Expenditure
UK Statistics Family,Office for National Statistics,07/08/2023,Exp - Short-Term Contract & Agency Staff - Full Cost,"SUB-NATIONAL STATISTICS AND ANALYSIS
",Concept Information Technology Ltd T/A Concept Resourcing,275137,"1,054.50",Information Management Services,Large,Programme Expenditure
UK Statistics Family,Office for National Statistics,07/08/2023,End User Software And Hardware,IT Operations,Cdw Limited,275139,"96,567.22",Information Management Services,Large,Programme Expenditure
UK Statistics Family,Office for National Statistics,08/08/2023,Exp - Purchase Of Goods/Services - Contractors,Data Architecture,Malikshaw Interim & Executive,275353,"3,494.40",Information Management Services,SME,Programme Expenditure
UK Statistics Family,Office for National Statistics,08/08/2023,Exp - Purchase Of Goods/Services - Contractors,CDIO UNGP,Malikshaw Interim & Executive,275353,25488,Information Management Services,SME,Programme Expenditure
UK Statistics Family,Office for National Statistics,08/08/2023,Hosting,CLOUD ARCHITECTURE,CTS (Cloud Technology Solutions Ltd),275355,"188,564.57",Information Management Services,Large,Programme Expenditure
UK Statistics Family,Office for National Statistics,08/08/2023,Surveys,Crime Statistics,Kantar Public UK Ltd.,275356,"486,988.70",Statistical Services,SME,Programme Expenditure
UK Statistics Family,Office for National Statistics,08/08/2023,EXP - PURCHASE OF GOODS/SERVICES - DATA ACQUISITION,Data As A Service,HMRC.,275362,"47,207.98",Data Acquisition,Large,Programme Expenditure
UK Statistics Family,Office for National Statistics,09/08/2023,Exp - Short-Term Contract & Agency Staff - Full Cost,Business Change Support,Concept Information Technology Ltd T/A Concept Resourcing,275491,"4,474.50",Information Management Services,Large,Programme Expenditure
UK Statistics Family,Office for National Statistics,09/08/2023,Exp - Short-Term Contract & Agency Staff - Full Cost,Business Change Support,Concept Information Technology Ltd T/A Concept Resourcing,275491,590.53,Information Management Services,Large,Programme Expenditure
UK Statistics Family,Office for National Statistics,09/08/2023,Exp - Short-Term Contract & Agency Staff - Full Cost,Business Change Support,Concept Information Technology Ltd T/A Concept Resourcing,275491,6264.02,Information Management Services,Large,Programme Expenditure
UK Statistics Family,Office for National Statistics,09/08/2023,Exp - Short-Term Contract & Agency Staff - Full Cost,Business Change Support,Concept Information Technology Ltd T/A Concept Resourcing,275491,1054.5,Information Management Services,Large,Programme Expenditure
UK Statistics Family,Office for National Statistics,09/08/2023,Exp - Short-Term Contract & Agency Staff - Full Cost,Best Practice And Impact,Concept Information Technology Ltd T/A Concept Resourcing,275491,"8,350.50",Information Management Services,Large,Programme Expenditure
UK Statistics Family,Office for National Statistics,09/08/2023,Exp - Purchase Of Goods/Services - Contractors,CDIO UNGP,Concept Information Technology Ltd T/A Concept Resourcing,275491,"17,613.60",Information Management Services,Large,Programme Expenditure
UK Statistics Family,Office for National Statistics,09/08/2023,Exp - Short-Term Contract & Agency Staff - Full Cost,Corporations,Concept Information Technology Ltd T/A Concept Resourcing,275491,"10,545.00",Information Management Services,Large,Programme Expenditure
UK Statistics Family,Office for National Statistics,09/08/2023,Exp - Purchase Of Goods/Services - IT Contractual Services,IT Applications,CTS (Cloud Technology Solutions Ltd),275506,"102,577.92",Information Management Services,Large,Programme Expenditure
UK Statistics Family,Office for National Statistics,09/08/2023,Exp - Purchase Of Goods/Services - Incentive Payments,Interviewer Support,Sodexo Motivation Solutions U.K. ltd,275508,"1,253.39",Survey Response Incentive Vouchers,Large,Programme Expenditure
UK Statistics Family,Office for National Statistics,09/08/2023,Exp - Purchase Of Goods/Services - Incentive Payments,Interviewer Support,Sodexo Motivation Solutions U.K. ltd,275508,"24,643.44",Survey Response Incentive Vouchers,Large,Programme Expenditure
UK Statistics Family,Office for National Statistics,09/08/2023,Exp - Purchase Of Goods/Services - Incentive Payments,Interviewer Support,Sodexo Motivation Solutions U.K. ltd,275508,197.40,Survey Response Incentive Vouchers,Large,Programme Expenditure
UK Statistics Family,Office for National Statistics,09/08/2023,Exp - Purchase Of Goods/Services - Incentive Payments,Interviewer Support,Sodexo Motivation Solutions U.K. ltd,275508,"4,781.38",Survey Response Incentive Vouchers,Large,Programme Expenditure
UK Statistics Family,Office for National Statistics,09/08/2023,Exp - Purchase Of Goods/Services - Incentive Payments,Crime Statistics,Sodexo Motivation Solutions U.K. ltd,275508,98.68,Survey Response Incentive Vouchers,Large,Programme Expenditure
UK Statistics Family,Office for National Statistics,09/08/2023,Exp - Purchase Of Goods/Services - Incentive Payments,Social Surveys Division,Sodexo Motivation Solutions U.K. ltd,275508,74.02,Survey Response Incentive Vouchers,Large,Programme Expenditure
UK Statistics Family,Office for National Statistics,09/08/2023,Exp - Purchase Of Goods/Services - Contractors,IT Applications,SmartSourcing Ltd,275509,"6,480.00",Information Management Services,SME,Programme Expenditure
UK Statistics Family,Office for National Statistics,09/08/2023,Exp - Purchase Of Goods/Services - Contractors,IT Operations,SmartSourcing Ltd,275509,"20,400.00",Information Management Services,SME,Programme Expenditure
UK Statistics Family,Office for National Statistics,09/08/2023,Exp - Purchase Of Goods/Services - Incentive Payments,Survey Management,Banner Group Ltd,275510,"44,400.00",Survey Response Incentive Items,SME,Programme Expenditure
UK Statistics Family,Office for National Statistics,09/08/2023,Exp - Purchase Of Goods/Services - Contractors,Security Advisory,Parity Resources Limited,275511,"13,531.50",Information Management Services,Large,Programme Expenditure
UK Statistics Family,Office for National Statistics,09/08/2023,Exp - Purchase Of Goods/Services - Contractors,CDIO UNGP,Parity Resources Limited,275511,"9,201.00",Information Management Services,Large,Programme Expenditure
UK Statistics Family,Office for National Statistics,09/08/2023,Exp - Purchase Of Goods/Services - Contractors,Strategy And Architecture,Parity Resources Limited,275511,"15,157.80",Information Management Services,Large,Programme Expenditure
UK Statistics Family,Office for National Statistics,09/08/2023,Exp - Purchase Of Goods/Services - Contractors,Strategy And Architecture,Parity Resources Limited,275511,"4,210.50",Information Management Services,Large,Programme Expenditure
UK Statistics Family,Office for National Statistics,09/08/2023,Exp - Short-Term Contract & Agency Staff - Full Cost,Interviewer Management FiF,Parity Resources Limited,275511,"5,962.13",Information Management Services,Large,Programme Expenditure
UK Statistics Family,Office for National Statistics,09/08/2023,Exp - Purchase Of Goods/Services - Census Field Costs,Interviewer Management FiF,Parity Resources Limited,275511,480.06,Information Management Services,Large,Programme Expenditure
UK Statistics Family,Office for National Statistics,09/08/2023,Exp - Purchase Of Goods/Services - IT Contractual Services,Digital Delivery,ANDigital Limited,275515,"131,478.00",Information Management Services,large,Programme Expenditure
UK Statistics Family,Office for National Statistics,10/08/2023,Exp - Purchase Of Goods/Services - Contractors,Testing,La International,275613,"8,756.40",Information Management Services,SME,Programme Expenditure
UK Statistics Family,Office for National Statistics,10/08/2023,Exp - Purchase Of Goods/Services - Contractors,Data Architecture,La International,275613,"10,680.71",Information Management Services,SME,Programme Expenditure
UK Statistics Family,Office for National Statistics,10/08/2023,Exp - Purchase Of Goods/Services - Contractors,Data Architecture,La International,275613,"3,982.38",Information Management Services,SME,Programme Expenditure
UK Statistics Family,Office for National Statistics,10/08/2023,Exp - Purchase Of Goods/Services - Contractors,IT Applications,La International,275613,"4,581.18",Information Management Services,SME,Programme Expenditure
UK Statistics Family,Office for National Statistics,10/08/2023,Exp - Purchase Of Goods/Services - Contractors,IT Operations,La International,275613,"18,482.40",Information Management Services,SME,Programme Expenditure
UK Statistics Family,Office for National Statistics,10/08/2023,Surveys,ECONOMIC CHANGE,Bureau Van Dijk Electronic Publishing,275619,"70,500.00",Data Acquisition Services,SME,Programme Expenditure
UK Statistics Family,Office for National Statistics,10/08/2023,Exp - Purchase Of Goods And Services Consultants,Policy Secretariat,Parity Resources Limited,275620,740.11,Information Management Services,Large,Programme Expenditure
UK Statistics Family,Office for National Statistics,10/08/2023,Exp - Purchase Of Goods/Services - Contractors,Testing,Parity Resources Limited,275620,"2,699.22",Information Management Services,Large,Programme Expenditure
UK Statistics Family,Office for National Statistics,10/08/2023,Exp - Purchase Of Goods/Services - Contractors,Security Advisory,Parity Resources Limited,275620,"14,315.70",Information Management Services,Large,Programme Expenditure
UK Statistics Family,Office for National Statistics,10/08/2023,Exp - Purchase Of Goods/Services - Contractors,Data Architecture,Parity Resources Limited,275620,"4,810.50",Information Management Services,Large,Programme Expenditure
UK Statistics Family,Office for National Statistics,10/08/2023,Exp - Purchase Of Goods/Services - Contractors,CDIO UNGP,Parity Resources Limited,275620,"4,600.50",Information Management Services,Large,Programme Expenditure
UK Statistics Family,Office for National Statistics,10/08/2023,Exp - Purchase Of Goods/Services - Contractors,Strategy And Architecture,Parity Resources Limited,275620,"2,526.30",Information Management Services,Large,Programme Expenditure
UK Statistics Family,Office for National Statistics,10/08/2023,Exp - Purchase Of Goods/Services - Contractors,IT Applications,Parity Resources Limited,275620,"3,120.00",Information Management Services,Large,Programme Expenditure
UK Statistics Family,Office for National Statistics,10/08/2023,Exp - Purchase Of Goods/Services - Contractors,IT Operations,Parity Resources Limited,275620,"4,800.00",Information Management Services,Large,Programme Expenditure
UK Statistics Family,Office for National Statistics,11/08/2023,Travel And Subsistence,CWT Trainline,Corporate Travel Management ,275710,"28,827.97",Travel and Accommodation,SME,Programme Expenditure
UK Statistics Family,Office for National Statistics,11/08/2023,Postage,Survey Processing Centre,DHL Parcel Ltd,275711,"33,677.12",Postage,Large,Programme Expenditure
UK Statistics Family,Office for National Statistics,11/08/2023,Rent Payable,Property Christchurch,Government Property Agency (GPA),275723,"57,522.50",Property Lease,Large,Programme Expenditure
UK Statistics Family,Office for National Statistics,11/08/2023,Rent Payable,Property Titchfield,Government Property Agency (GPA),275725,"709,575.00",Property Lease,Large,Programme Expenditure
UK Statistics Family,Office for National Statistics,11/08/2023,Rent Payable,Property Christchurch,Government Property Agency (GPA),275725,"57,522.50",Property Lease,Large,Programme Expenditure
UK Statistics Family,Office for National Statistics,14/08/2023,Exp - Purchase Of Goods/Services - IT Contractual Services,PARTNERSHIP DEVELOPMENT,Sas Software Ltd,275803,"38,124.00",Information Management Services,Large,Programme Expenditure
UK Statistics Family,Office for National Statistics,14/08/2023,End User Software And Hardware,IT Operations,Boxxe Ltd,275810,"51,096.77",Software Licenses,SME,Programme Expenditure
UK Statistics Family,Office for National Statistics,14/08/2023,Specialist User Software And Hardware,IT Operations,Boxxe Ltd,275810,"65,308.32",Software Licenses,SME,Programme Expenditure
UK Statistics Family,Office for National Statistics,15/08/2023,EXP - PURCHASE OF GOODS/SERVICES - DATA ACQUISITION,Prices Division,UK Finance,276002,"25,698.00",Data Acquisition,SME,Programme Expenditure
UK Statistics Family,Office for National Statistics,15/08/2023,Exp - Permanent UK Staff - PRP Voucher Payments,ONS Corporate Funds,Edenred (UK Group) Limited,276006,"54,600.00",Performance Reward Vouchers,Large,Programme Expenditure
UK Statistics Family,Office for National Statistics,15/08/2023,Exp - Short-Term Contract & Agency Staff - Full Cost,Interviewer Management FiF,Parity Resources Limited,276008,"33,238.50",Information Management Services,Large,Programme Expenditure
UK Statistics Family,Office for National Statistics,15/08/2023,Exp - Purchase Of Goods/Services - Census Field Costs,Interviewer Management FiF,Parity Resources Limited,276008,"7,859.62",Information Management Services,Large,Programme Expenditure
UK Statistics Family,Office for National Statistics,15/08/2023,Exp - Short-Term Contract & Agency Staff - Full Cost,Interviewer Support,Parity Resources Limited,276008,"1,417.02",Information Management Services,Large,Programme Expenditure
UK Statistics Family,Office for National Statistics,15/08/2023,Exp - Purchase Of Goods/Services - Census Field Costs,Interviewer Support,Parity Resources Limited,276008,139.62,Information Management Services,Large,Programme Expenditure
UK Statistics Family,Office for National Statistics,15/08/2023,Exp - Purchase Of Goods And Services Consultants,Productivity Research And Professional Development,Kings College London,276009,"139,802.40",Statistical Services,Large,Programme Expenditure
UK Statistics Family,Office for National Statistics,15/08/2023,Exp - Purchase Of Goods/Services - IT Contractual Services,Digital Delivery,ANDigital Limited,276014,"29,868.00",Information Management Services,large,Programme Expenditure
UK Statistics Family,Office for National Statistics,16/08/2023,Hosting,CLOUD ARCHITECTURE,Amazon Web Services Inc,276156,"318,151.97",Information Management Services,Large,Programme Expenditure
UK Statistics Family,Office for National Statistics,17/08/2023,FM Contract Payments,Vinci Payments,Vinci Construction UK Limited,276262,371072.47,Facilities Mangement Services,Large,Programme Expenditure
UK Statistics Family,Office for National Statistics,17/08/2023,Exp - Purchase Of Goods/Services - IT Contractual Services,CLOUD ARCHITECTURE,Ibm United Kingdom Ltd,276265,"54,297.60",Information Management Services,Large,Programme Expenditure
UK Statistics Family,Office for National Statistics,17/08/2023,Exp - Purchase Of Goods/Services - IT Contractual Services,Strategy And Architecture,Ibm United Kingdom Ltd,276265,"134,021.95",Information Management Services,Large,Programme Expenditure
UK Statistics Family,Office for National Statistics,17/08/2023,Exp - Purchase Of Goods/Services - IT Contractual Services,IT Operations,Ibm United Kingdom Ltd,276265,"12,467.52",Information Management Services,Large,Programme Expenditure
UK Statistics Family,Office for National Statistics,18/08/2023,Hosting,IT Operations,Crown Hosting Data Centres Limited,276361,"39,143.45",Information Management Services,SME,Programme Expenditure
UK Statistics Family,Office for National Statistics,18/08/2023,Exp - Purchase Of Goods/Services - IT Contractual Services,CDIO UNGP,CTS (Cloud Technology Solutions Ltd),276370,"111,428.80",Information Management Services,Large,Programme Expenditure
UK Statistics Family,Office for National Statistics,18/08/2023,Specialist User Software And Hardware,Learning And Capability,SKILLSOFT UK LIMITED,276372,"169,992.54",Software Licenses,Large,Programme Expenditure
UK Statistics Family,Office for National Statistics,18/08/2023,Specialist User Software And Hardware,Security Operations,SKILLSOFT UK LIMITED,276372,"47,460.00",Software Licenses,Large,Programme Expenditure
UK Statistics Family,Office for National Statistics,21/08/2023,Buildings Under Construction,Property Newport,Vinci Construction UK Limited,276473,"182,313.97",Facilities Mangement Services,Large,Programme Expenditure
UK Statistics Family,Office for National Statistics,21/08/2023,Marketing & Media,Strategic Commununications,Fenix Media Limited T/A Pulsar,276478,"35,040.00",Media Monitoring Services,SME,Programme Expenditure
UK Statistics Family,Office for National Statistics,22/08/2023,Other Goods And Services,FAST STREAM RECHARGES - CABINET OFFICE,Cabinet Office,276624,"45,849.00",Fast Stream Services,Large,Programme Expenditure
UK Statistics Family,Office for National Statistics,22/08/2023,Other Goods And Services,FAST STREAM RECHARGES - CABINET OFFICE,Cabinet Office,276628,"116,977.00",Fast Stream Services,Large,Programme Expenditure
UK Statistics Family,Office for National Statistics,22/08/2023,Rent Payable,Property Darlington,Government Property Agency (GPA),276630,"15,870.75",Property Lease,Large,Programme Expenditure
UK Statistics Family,Office for National Statistics,22/08/2023,Other Goods And Services,Property Darlington,Government Property Agency (GPA),276630,35436.43,Property Lease,Large,Programme Expenditure
UK Statistics Family,Office for National Statistics,22/08/2023,Rent Payable,Property Christchurch,Government Property Agency (GPA),276630,"57,522.50",Property Lease,Large,Programme Expenditure
UK Statistics Family,Office for National Statistics,22/08/2023,"ICT Outsourcing, Maintenance And Support",IT Operations,Government Property Agency (GPA),276630,"5,844.60",Property Lease,Large,Programme Expenditure
UK Statistics Family,Office for National Statistics,23/08/2023,Exp - Purchase Of Goods/Services - IT Contractual Services,DATA ENGINEERING OPERATIONS AND DELIVERY,CTS (Cloud Technology Solutions Ltd),276763,"36,842.40",Information Management Services,Large,Programme Expenditure
UK Statistics Family,Office for National Statistics,23/08/2023,Other Professional Services,People Solutions,Government Legal Department,276764,"40,127.76",Legal Services,Large,Programme Expenditure
UK Statistics Family,Office for National Statistics,23/08/2023,Exp - Purchase Of Goods/Services - Incentive Payments,Survey Management,Banner Group Ltd,276767,36480,Survey Response Incentive Items,SME,Programme Expenditure
UK Statistics Family,Office for National Statistics,24/08/2023,Exp - Purchase Of Goods/Services - Contractors,Security Advisory,Certes Computing Ltd,276869,16626.61,Information Management Services,SME,Programme Expenditure
UK Statistics Family,Office for National Statistics,24/08/2023,Exp - Purchase Of Goods/Services - Contractors,Data Architecture,Certes Computing Ltd,276869,16800,Information Management Services,SME,Programme Expenditure
UK Statistics Family,Office for National Statistics,24/08/2023,Exp - Purchase Of Goods/Services - Contractors,Data Architecture,Certes Computing Ltd,276869,"9,180.36",Information Management Services,SME,Programme Expenditure
UK Statistics Family,Office for National Statistics,24/08/2023,Exp - Purchase Of Goods/Services - Contractors,Interviewer Management FiF,Certes Computing Ltd,276869,"15,300.00",Information Management Services,SME,Programme Expenditure
UK Statistics Family,Office for National Statistics,25/08/2023,Exp - Purchase Of Goods/Services - IT Contractual Services,Finance,Oracle Corporation UK Ltd,276937,"214,954.44",Oracle Cloud Service,Large,Programme Expenditure
UK Statistics Family,Office for National Statistics,25/08/2023,Surveys,Business Outputs And Developments,Iff Research,276942,"219,012.85",Statistical Services,Large,Programme Expenditure
UK Statistics Family,Office for National Statistics,25/08/2023,EXP - PURCHASE OF GOODS/SERVICES - DATA ACQUISITION,Data As A Service,JISC,276944,"32,317.20",Data Acquisition,SME,Programme Expenditure
UK Statistics Family,Office for National Statistics,25/08/2023,Prepayments - Titchfield Postage Meter,Postage,Pitney Bowes Ltd,276947,301.52,Postage,Large,Programme Expenditure
UK Statistics Family,Office for National Statistics,25/08/2023,Postage,REPROGRAPHICS,Pitney Bowes Ltd,276947,"294,735.14",Postage,Large,Programme Expenditure
UK Statistics Family,Office for National Statistics,25/08/2023,Other Goods And Services,Blaise and IPS Delivery Development,OAG Aviation Worldwide Ltd,276948,"33,000.00",Data Acquisition,Large,Programme Expenditure
UK Statistics Family,Office for National Statistics,29/08/2023,Hosting,IT Operations,ITS Computing Limited,277048,"48,400.00",Information Management Services,Large,Programme Expenditure
UK Statistics Family,Office for National Statistics,29/08/2023,Telecoms,IT Operations,Cdw Limited,277053,"35,536.80",Information Management Services,Large,Programme Expenditure
UK Statistics Family,Office for National Statistics,29/08/2023,Telecoms,IT Operations,Bt Global Services,277055,"26,162.80",Telecommunications,Large,Programme Expenditure
UK Statistics Family,Office for National Statistics,17/08/2023,Electricity,Property Newport,Edf Energy,30004254,32705.86,Utility Costs,Large,Programme Expenditure
UK Statistics Family,Office for National Statistics,17/08/2023,Stationery,Lodgecard,Royal Bank of Scotland,30004256,"3,274.27",Multiple Procurement Card Purchases  - Stationery ,Large,Programme Expenditure
UK Statistics Family,Office for National Statistics,17/08/2023,Other Goods And Services,GPC,Royal Bank of Scotland,30004256,"34,227.10",Multiple Procurement Card Purchases - other goods/services  ,Large,Programme Expenditure
UK Statistics Family,Office for National Statistics,17/08/2023,Travel And Subsistence,Car Hire,Royal Bank of Scotland,30004256,"18,056.73",Multiple Procurement Card Purchases - Vehicle Hire  ,Large,Programme Expenditure
UK Statistics Family,Office for National Statistics,18/08/2023,Electricity,Property Titchfield,Edf Energy,30004259,"26,840.61",Utility Costs,Large,Programme Expenditure
UK Statistics Family,Office for National Statistics,31/08/2023,"ICT Outsourcing, Maintenance And Support",CDIO UNGP,CTS (Cloud Technology Solutions Ltd),30004268,81000,Information Management Services,Large,Programme Expenditure
UK Statistics Family,Office for National Statistics,31/08/2023,Exp - Purchase Of Goods/Services - IT Contractual Services,CDIO UNGP,CTS (Cloud Technology Solutions Ltd),30004269,81000,Information Management Services,Large,Programme Expenditure
UK Statistics Family,Office for National Statistics,31/08/2023,Exp - Purchase Of Goods/Services - IT Contractual Services,DATA ENGINEERING OPERATIONS AND DELIVERY,CTS (Cloud Technology Solutions Ltd),30004270,"36,842.40",Information Management Services,Large,Programme Expenditure
UK Statistics Family,Office for National Statistics,31/08/2023,PPE - NON-PROPERTY (LEASED NON-PFI) - COST - ADDITIONS (AS LESSEE),IT Operations,Crown Hosting Data Centres Limited,30004272,63055.46,Information Management Services,SME,Programme Expenditure
UK Statistics Family,Office for National Statistics,31/08/2023,End User Software And Hardware,IT Operations,Dell Computer Corp Ltd,30004275,"186,871.92",Software Licenses,Large,Programme Expenditure
UK Statistics Family,Office for National Statistics,31/08/2023,End User Software And Hardware,IT Operations,Dell Computer Corp Ltd,30004276,"127,717.56",Software Licenses,Large,Programme Expenditure
UK Statistics Family,Office for National Statistics,31/08/2023,End User Software And Hardware,IT Operations,Dell Computer Corp Ltd,30004277,"68,778.88",Software Licenses,Large,Programme Expenditure
UK Statistics Family,Office for National Statistics,31/08/2023,End User Software And Hardware,IT Operations,Dell Computer Corp Ltd,30004278,32209.49,Software Licenses,Large,Programme Expenditure
UK Statistics Family,Office for National Statistics,31/08/2023,End User Software And Hardware,IT Operations,Dell Computer Corp Ltd,30004279,465843.71,Software Licenses,Large,Programme Expenditure
UK Statistics Family,Office for National Statistics,31/08/2023,Rent Payable,Property Darlington,Government Property Agency (GPA),30004280,"15,870.75",Property Lease,Large,Programme Expenditure
UK Statistics Family,Office for National Statistics,31/08/2023,Other Goods And Services,Property Darlington,Government Property Agency (GPA),30004280,"35,436.43",Property Lease,Large,Programme Expenditure
UK Statistics Family,Office for National Statistics,31/08/2023,"ICT Outsourcing, Maintenance And Support",IT Operations,Government Property Agency (GPA),30004280,"14,342.40",Property Lease,Large,Programme Expenditure
UK Statistics Family,Office for National Statistics,31/08/2023,Rent Payable,Property Titchfield,Government Property Agency (GPA),30004281,"354,787.50",Property Lease,Large,Programme Expenditure
UK Statistics Family,Office for National Statistics,31/08/2023,"ICT Outsourcing, Maintenance And Support",IT Operations,ITS Computing Limited,30004282,"9,120.00",Information Management Services,Large,Programme Expenditure
UK Statistics Family,Office for National Statistics,31/08/2023,"ICT Outsourcing, Maintenance And Support",IT Operations,ITS Computing Limited,30004282,22080,Information Management Services,Large,Programme Expenditure
UK Statistics Family,Office for National Statistics,31/08/2023,EXP - PURCHASE OF GOODS/SERVICES - DATA ACQUISITION,Prices Division,Kantar Public UK Ltd.,30004283,"223,078.80",Statistical Services,SME,Programme Expenditure
UK Statistics Family,Office for National Statistics,31/08/2023,FM Contract Payments,Vinci Payments,Vinci Construction UK Limited,30004290,"102,845.24",Facilities Mangement Services,Large,Programme Expenditure
,,,,,,,"8,284,980.87",,,
